bitfinex/quotes_SOLUSD_20250518
["timestamp","ask_amount","ask_price","bid_price","bid_amount"]
[1747590975209,5.78046428,173.0,172.9,26.0]
[1747590975404,29.10284685,173.0,172.9,26.0]
[1747590975600,23.32238257,173.0,172.9,26.0]
[1747590975796,5.77934462,173.03,172.91,9.06107221]
[1747590976010,23.32238257,173.02,172.91,9.06107221]
[1747590976715,23.32238257,173.01,172.92,5.78302105]
[1747590976893,23.32238257,173.01,172.93,28.4]
[1747590977187,23.32238257,173.0,172.93,28.4]
[1747590977729,23.32238257,173.0,172.93,34.18244395]
[1747590978008,5.78016304,173.01,172.93,34.18244395]
[1747590978009,29.8982,173.04,172.93,34.18244395]
[1747590978256,5.77901063,173.04,172.93,34.18244395]
[1747590978427,23.32238257,173.01,172.93,34.18244395]
[1747590980117,5.77901063,173.04,172.93,34.18244395]
[1747590980328,5.77901063,173.04,172.94,1.15602073]
[1747590980507,29.1013932,173.04,172.94,1.15602073]
[1747590980704,5.77901063,173.04,172.94,1.15602073]
[1747590980909,23.32238257,173.02,172.94,1.15602073]
[1747590981409,23.32238257,173.03,172.94,1.15602073]
[1747590981796,29.10196168,173.03,172.95,5.78201792]
[1747590982752,5.77957911,173.03,172.95,5.78201792]
[1747590982958,23.32238257,173.02,172.94,5.78235226]
[1747590983539,5.77901063,173.04,172.94,5.78235226]
[1747590983712,23.32238257,173.02,172.94,5.78235226]
[1747590983909,23.32238257,173.03,172.94,5.78235226]
[1747590984819,29.1013932,173.04,172.96,5.78168362]
[1747590985029,5.77901063,173.04,172.96,5.78168362]
[1747590985410,29.1013932,173.04,172.96,5.78168362]
[1747590985615,29.10109751,173.05,172.96,5.78168362]
[1747590985829,5.77803881,173.07,172.98,1.519]
[1747590986203,29.10042138,173.07,172.98,1.519]
[1747590987000,29.10042138,173.07,172.99,5.78068096]
[1747590987633,23.32238257,173.06,172.99,5.78068096]
[1747590987813,23.32238257,173.05,172.99,5.78068096]
[1747590988824,29.10077934,173.06,172.99,5.78068096]
[1747590989630,23.32238257,173.02,172.96,82.8]
[1747590989833,23.32238257,173.03,172.95,5.78201792]
[1747590990023,23.32238257,173.01,172.95,5.78201792]
[1747590991743,15.03454223,173.1,172.98,26.0]
[1747590991908,5.77604261,173.13,173.02,26.0]
[1747590992105,5.77604261,173.13,173.03,29.55559252]
[1747590992335,23.32238257,173.12,173.03,29.55559252]
[1747590993128,23.32238257,173.12,173.04,5.77901063]
[1747590993129,23.32238257,173.11,173.04,5.77901063]
[1747590993431,23.32238257,173.1,173.04,5.77901063]
[1747590994638,23.32238257,173.11,173.04,5.77901063]
[1747590995239,29.09914237,173.11,173.04,5.77901063]
[1747590995647,5.7767598,173.11,173.04,5.77901063]
[1747590996341,5.77600646,173.13,173.04,5.77901063]
[1747590996638,23.32238257,173.12,173.04,5.77901063]
[1747590997814,5.77667379,173.11,173.03,28.4]
[1747590998009,23.32238257,173.1,173.03,28.4]
[1747590998231,23.32238257,173.11,173.03,34.17932414]
[1747590999139,23.32238257,173.1,173.03,34.17932414]
[1747590999643,5.77682877,173.11,173.03,34.17932414]
[1747590999819,23.32238257,173.1,173.03,34.17932414]
[1747591000937,24.42565532,173.13,173.03,34.17932414]
[1747591001141,23.32238257,173.1,173.03,34.17932414]
[1747591002932,5.77677158,173.11,173.03,34.17932414]
[1747591003137,23.32238257,173.1,173.03,34.17932414]
[1747591003949,23.32238257,173.08,173.03,28.4]
[1747591004148,23.32238257,173.07,173.03,28.4]
[1747591004631,23.32238257,173.05,173.03,28.4]
[1747591005244,23.32238257,173.06,173.03,28.4]
[1747591005622,23.32238257,173.05,173.03,28.4]
[1747591006141,23.32238257,173.04,172.98,5.78097368]
[1747591006329,23.32238257,173.03,172.98,5.78097368]
[1747591006540,23.32238257,173.02,172.97,34.08133815]
[1747591007247,23.32238257,173.01,172.97,28.3]
[1747591007449,23.32238257,172.99,172.94,216.3]
[1747591007613,14.58072244,172.98,172.94,216.3]
[1747591008339,14.58072244,172.97,172.94,216.3]
[1747591008555,14.58072244,172.96,172.92,28.3]
[1747591008724,14.58072244,172.97,172.92,28.3]
[1747591008924,5.78108339,172.98,172.92,28.3]
[1747591009119,14.58072244,172.98,172.92,34.08298016]
[1747591009741,23.32879947,172.98,172.92,34.08298016]
[1747591012049,23.32879947,172.99,172.92,34.08298016]
[1747591012448,5.78003512,173.01,172.92,34.08298016]
[1747591012651,23.32879947,173.0,172.92,34.08298016]
[1747591013151,5.78003512,173.01,172.92,34.08298016]
[1747591013152,23.32879947,172.99,172.92,34.08298016]
[1747591014633,5.78001271,173.01,172.92,34.08298016]
[1747591014830,23.32879947,172.99,172.92,34.08298016]
[1747591015160,23.32879947,172.97,172.92,34.08298016]
[1747591017640,23.32879947,172.98,172.92,34.08298016]
[1747591019143,29.10981838,172.98,172.92,34.08298016]
[1747591019527,23.32879947,172.97,172.92,28.3]
[1747591019729,5.78101891,172.98,172.88,26.0]
[1747591019730,23.32879947,172.95,172.88,34.10435909]
[1747591020539,131.47879425,172.99,172.89,1.15650537]
[1747591020739,125.69807976,172.99,172.89,1.15650537]
[1747591021056,23.32879947,173.02,172.92,12.43702105]
[1747591021249,29.10785037,173.04,172.95,26.0]
[1747591021434,23.32879947,173.03,172.95,27.612]
[1747591022345,23.32879947,173.03,172.96,5.78168362]
[1747591023035,29.10821028,173.03,172.96,5.78168362]
[1747591023247,23.32879947,173.01,172.95,7.39391718]
[1747591024053,23.32879947,173.02,172.95,7.39391718]
[1747591024556,5.7796887,173.02,172.95,7.39391718]
[1747591024768,29.10848817,173.02,172.95,7.39391718]
[1747591025455,23.32879947,173.0,172.92,6.654]
[1747591025645,23.32879947,172.99,172.92,54.32]
[1747591026565,29.10968343,172.99,172.92,60.10297436]
[1747591026764,29.10968343,172.99,172.92,34.10297436]
[1747591029442,29.10968343,172.99,172.92,5.78297436]
[1747591029636,23.32879947,172.97,172.9,26.0]
[1747591029840,23.32879947,172.96,172.9,26.0]
[1747591030144,23.32879947,172.96,172.89,34.04392517]
[1747591030349,20.23258637,172.99,172.89,28.26]
[1747591030350,23.32879947,172.95,172.89,28.26]
[1747591031443,23.32879947,172.95,172.89,34.04393067]
[1747591031760,14.58621941,172.95,172.89,34.04393067]
[1747591031961,14.58621941,172.95,172.89,28.26]
[1747591032868,14.58621941,172.91,172.86,1.5279]
[1747591033055,14.58621941,172.91,172.83,31.78603251]
[1747591033255,102.36928029,172.96,172.83,31.78603251]
[1747591033453,14.58621941,172.92,172.83,31.78603251]
[1747591033762,20.36938954,172.92,172.83,31.78603251]
[1747591033961,14.58621941,172.91,172.83,31.78603251]
[1747591034867,14.58621941,172.9,172.82,35.57422989]
[1747591035776,5.78402452,172.89,172.82,35.57422989]
[1747591036065,14.58621941,172.87,172.82,29.7879]
[1747591036272,5.78402452,172.89,172.82,29.7879]
[1747591036469,5.78168362,172.96,172.86,26.0]
[1747591036646,14.58621941,172.95,172.86,26.0]
[1747591036846,5.78168362,172.96,172.85,1.15659749]
[1747591036847,14.58621941,172.94,172.85,1.15659749]
[1747591037265,14.58621941,172.94,172.84,26.0]
[1747591038253,5.78268663,172.93,172.85,5.78536303]
[1747591038769,5.78268663,172.93,172.85,6.94201317]
[1747591038976,14.58621941,172.95,172.86,26.0]
[1747591039979,20.36847815,172.95,172.87,5.7846937]
[1747591040167,5.78169522,172.96,172.87,5.7846937]
[1747591040375,5.78169522,172.96,172.88,1.15657282]
[1747591041153,20.36760904,172.97,172.88,1.15657282]
[1747591041780,14.58621941,172.94,172.87,5.7846937]
[1747591042278,20.3686285,172.94,172.87,5.7846937]
[1747591042478,14.58621941,172.93,172.85,6.94150764]
[1747591042660,14.58621941,172.92,172.85,5.78510484]
[1747591042978,14.58621941,172.92,172.84,34.04565067]
[1747591043181,14.58621941,172.92,172.84,5.78565067]
[1747591043680,14.58621941,172.89,172.83,28.26]
[1747591044175,5.78435909,172.88,172.83,28.26]
[1747591045554,5.78435909,172.88,172.82,7.31426208]
[1747591046775,20.37032938,172.89,172.82,7.31426208]
[1747591047078,14.58621941,172.92,172.82,47.78018037]
[1747591047279,104.01088029,172.94,172.83,19.80646255]
[1747591047463,14.58621941,172.93,172.83,19.80646255]
[1747591047664,22.09960862,172.98,172.86,26.0]
[1747591047865,14.58621941,172.96,172.87,1.15649346]
[1747591048070,5.78110363,172.98,172.89,1.632]
[1747591048276,14.58621941,172.99,172.9,28.26]
[1747591048580,20.3663103,173.01,172.91,1.15625612]
[1747591048786,20.3663103,173.01,172.92,5.78302105]
[1747591048983,5.78009089,173.01,172.93,1.15612287]
[1747591049164,14.58621941,173.02,172.93,1.15612287]
[1747591049359,20.36556403,173.03,172.94,6.484]
[1747591050090,14.58621941,173.02,172.94,6.484]
[1747591050390,14.58621941,173.02,172.95,5.78201792]
[1747591050687,20.36601806,173.02,172.95,5.78201792]
[1747591051689,29.09794597,173.02,172.95,5.78201792]
[1747591053087,23.31814732,173.02,172.95,5.78201792]
[1747591053384,29.09753442,173.03,172.95,5.78201792]
[1747591055707,29.09753442,173.03,172.91,18.64964886]
[1747591055708,23.31814732,172.97,172.89,1.632]
[1747591055994,23.31814732,172.98,172.89,23.03222491]
[1747591056194,23.31814732,172.98,172.89,8.5721636]
[1747591056387,23.31814732,172.97,172.89,7.41583333]
[1747591056578,23.31814732,172.96,172.89,7.41583333]
[1747591057271,23.31814732,172.95,172.89,1.632]
[1747591057471,23.31814732,172.96,172.89,1.632]
[1747591057905,5.78201792,172.95,172.89,1.632]
[1747591058411,29.10016524,172.95,172.89,1.632]
[1747591059087,5.78201792,172.95,172.89,1.632]
[1747591059297,29.10016524,172.95,172.89,1.632]
[1747591060476,29.10016524,172.95,172.79,14.46759641]
[1747591060477,26.87036273,172.95,172.79,14.46759641]
[1747591060676,23.31814732,172.93,172.8,29.25653779]
[1747591060882,23.31814732,172.92,172.84,26.0]
[1747591062095,23.31814732,172.93,172.84,26.0]
[1747591062797,5.78302105,172.92,172.85,5.78536303]
[1747591063797,23.31814732,172.93,172.85,5.78536303]
[1747591063983,23.31814732,172.94,172.85,5.78536303]
[1747591064812,29.10049958,172.94,172.85,5.78536303]
[1747591065104,5.78235226,172.94,172.85,33.88536303]
[1747591065280,23.31814732,172.95,172.86,1.6471]
[1747591065476,5.78134936,172.97,172.86,1.6471]
[1747591065674,23.31814732,172.95,172.86,1.6471]
[1747591065909,5.78134936,172.97,172.88,26.0]
[1747591066204,23.31814732,172.94,172.88,26.0]
[1747591067509,23.31814732,172.92,172.85,116.68531419]
[1747591067697,23.31814732,172.92,172.85,33.88531419]
[1747591068404,29.10083395,172.93,172.85,33.88531419]
[1747591070299,29.10083395,172.93,172.85,28.1]
[1747591070597,23.31814732,172.92,172.85,28.1]
[1747591070797,5.78268663,172.93,172.85,33.88520874]
[1747591070798,29.10083395,172.93,172.85,33.88520874]
[1747591071193,5.78268663,172.93,172.85,33.88520874]
[1747591071403,29.10083395,172.93,172.85,33.88520874]
[1747591071585,7.8885,172.92,172.79,7.39167195]
[1747591071791,14.60094436,172.87,172.79,7.39167195]
[1747591072500,5.78502834,172.86,172.79,7.39167195]
[1747591073407,20.3859727,172.86,172.79,7.39167195]
[1747591074289,5.78368999,172.9,172.81,26.0]
[1747591074897,14.60094436,172.88,172.81,26.0]
[1747591075789,14.60094436,172.88,172.82,5.78636731]
[1747591076785,14.60094436,172.89,172.82,5.78636731]
[1747591078192,20.38506742,172.89,172.82,5.78636731]
[1747591079115,20.38534492,172.88,172.82,5.78636731]
[1747591080483,14.60094436,172.89,172.82,5.78636731]
[1747591080702,14.60094436,172.88,172.82,5.78636731]
[1747591080907,5.7833555,172.91,172.81,31.78661919]
[1747591081096,14.60094436,172.88,172.81,31.78661919]
[1747591082612,20.38541342,172.88,172.81,31.78661919]
[1747591084222,5.78368999,172.9,172.81,31.78661919]
[1747591084517,116.82562805,172.94,172.82,19.80644116]
[1747591084695,14.60094436,172.92,172.82,19.80644116]
[1747591085092,14.60094436,172.93,172.85,26.0]
[1747591085403,122.75261546,172.94,172.85,32.1978]
[1747591086096,122.75261546,172.94,172.86,7.31752834]
[1747591086393,20.38333517,172.94,172.86,7.31752834]
[1747591086994,20.38333517,172.94,172.86,35.21752834]
[1747591087401,5.78201792,172.95,172.86,35.21752834]
[1747591087602,14.60094436,172.94,172.86,35.21752834]
[1747591088418,20.38338705,172.94,172.86,35.21752834]
[1747591088605,20.38338705,172.94,172.86,7.31752834]
[1747591088915,14.60094436,172.91,172.85,59.6853429]
[1747591089113,14.60094436,172.92,172.85,59.6853429]
[1747591089603,20.38338705,172.94,172.85,59.6853429]
[1747591090614,14.60094436,172.93,172.85,59.6853429]
[1747591092027,20.38371182,172.93,172.85,59.6853429]
[1747591093533,5.78201792,172.95,172.85,59.6853429]
[1747591093737,14.60094436,172.93,172.85,59.6853429]
[1747591094812,5.78267939,172.94,172.85,59.6853429]
[1747591095011,36.21157339,172.96,172.86,1.15659713]
[1747591095315,41.99333861,172.96,172.86,1.15659713]
[1747591095633,41.99333861,172.96,172.86,83.95659713]
[1747591096131,41.99333861,172.96,172.87,5.7846937]
[1747591096339,41.99333861,172.96,172.88,1.6265]
[1747591096741,20.38270958,172.96,172.88,1.6265]
[1747591097218,20.38270958,172.96,172.89,5.78402452]
[1747591098342,14.60094436,172.97,172.89,5.78402452]
[1747591098945,5.78128984,172.98,172.89,5.78402452]
[1747591099141,20.3822342,172.98,172.89,5.78402452]
[1747591099652,5.78075453,172.99,172.9,18.64964886]
[1747591100049,20.38169889,172.99,172.9,23.34655424]
[1747591100337,20.38169889,172.99,172.91,5.7833555]
[1747591100538,14.60094436,173.0,172.91,5.7833555]
[1747591101146,20.38136205,173.0,172.91,5.7833555]
[1747591101351,14.60094436,172.99,172.91,5.7833555]
[1747591103040,5.78041769,173.0,172.91,5.7833555]
[1747591103241,14.60094436,172.99,172.91,5.7833555]
[1747591103631,20.38173735,172.99,172.91,5.7833555]
[1747591105148,14.60094436,172.97,172.91,5.7833555]
[1747591105555,14.60094436,172.98,172.91,5.7833555]
[1747591105869,14.60094436,172.96,172.9,5.78366597]
[1747591106056,14.60094436,172.96,172.88,34.1553]
[1747591106260,14.60094436,172.93,172.84,305.7288]
[1747591106569,14.60094436,172.93,172.84,252.4553]
[1747591106865,14.60094436,172.93,172.85,26.0]
[1747591107070,20.38386218,172.93,172.85,36.48132862]
[1747591107270,14.60094436,172.86,172.81,8.28258015]
[1747591107456,14.60094436,172.85,172.78,5.7876986]
[1747591107760,14.60094436,172.85,172.77,26.0]
[1747591107941,14.60094436,172.84,172.76,5.78805317]
[1747591108138,7.7009,172.88,172.76,5.78805317]
[1747591108560,14.60094436,172.84,172.76,5.78805317]
[1747591108939,5.78569775,172.84,172.76,5.78805317]
[1747591110053,5.7846937,172.87,172.76,5.78805317]
[1747591110251,14.60094436,172.84,172.76,5.78805317]
[1747591110846,14.60094436,172.83,172.76,5.78805317]
[1747591111056,5.7846937,172.87,172.76,5.78805317]
[1747591111262,5.78603251,172.83,172.76,5.78805317]
[1747591112078,5.78603251,172.83,172.75,27.9]
[1747591112079,14.60094436,172.82,172.75,27.9]
[1747591112991,14.60094436,172.83,172.75,27.9]
[1747591113487,14.60094436,172.82,172.75,27.9]
[1747591115194,5.78670215,172.81,172.75,27.9]
[1747591115484,14.60094436,172.8,172.75,27.9]
[1747591115691,5.78670215,172.81,172.75,27.9]
[1747591115891,14.60094436,172.8,172.75,27.9]
[1747591116072,20.38764651,172.81,172.75,27.9]
[1747591116688,20.25345754,172.81,172.75,27.9]
[1747591117091,34.8544019,172.81,172.75,27.9]
[1747591117281,14.60094436,172.8,172.75,27.9]
[1747591117789,14.60094436,172.79,172.75,27.9]
[1747591117964,20.25345754,172.81,172.75,27.9]
[1747591118162,14.60094436,172.8,172.75,27.9]
[1747591118719,14.60094436,172.79,172.75,27.9]
[1747591119207,20.25345754,172.81,172.73,216.4]
[1747591119401,14.60094436,172.78,172.73,216.4]
[1747591120288,14.60094436,172.77,172.73,216.4]
[1747591120466,14.60094436,172.76,172.73,216.4]
[1747591120668,14.60094436,172.77,172.73,216.4]
[1747591120895,14.60094436,172.76,172.7,1.45099997]
[1747591121193,14.60094436,172.71,172.67,4.79720646]
[1747591121395,14.60094436,172.68,172.67,4.79720646]
[1747591121702,20.94144436,172.68,172.67,4.79720646]
[1747591122083,24.99014886,172.68,172.67,4.79720646]
[1747591122273,26.0,172.65,172.41,54.35332874]
[1747591122467,55.20188872,172.49,172.41,54.35332874]
[1747591122773,9.38514427,172.48,172.41,54.35332874]
[1747591122972,55.20188872,172.42,172.41,54.35332874]
[1747591123306,55.20188872,172.42,172.3,0.0581]
[1747591123307,65.96919352,172.42,172.3,0.0581]
[1747591123477,26.0,172.39,172.3,0.0581]
[1747591123680,26.0,172.36,172.3,0.0581]
[1747591123897,42.32270834,172.35,172.3,0.0581]
[1747591124304,42.32270834,172.35,172.34,75.70470682]
[1747591124618,26.0,172.39,172.34,78.72300491]
[1747591124796,149.89934042,172.42,172.34,75.70470682]
[1747591125165,21.16135417,172.35,172.34,75.70470682]
[1747591125591,144.09954922,172.42,172.34,75.70470682]
[1747591126171,159.89958456,172.42,172.34,75.70470682]
[1747591126367,36.0,172.39,172.34,75.70470682]
[1747591126906,26.0,172.39,172.34,75.70470682]
[1747591127075,42.32270834,172.35,172.34,75.70470682]
[1747591127395,26.0,172.32,172.3,0.0581]
[1747591127587,21.16135417,172.31,172.3,0.0581]
[1747591127779,26.0,172.34,172.3,0.0581]
[1747591128095,30.11602771,172.33,172.3,0.0581]
[1747591128270,26.0,172.31,172.3,0.0581]
[1747591128479,26.0,172.31,172.29,88.7809592]
[1747591128679,29.18142744,172.32,172.07,24.52858818]
[1747591128680,26.0,172.32,172.07,24.52858818]
[1747591128888,21.16135417,172.24,172.16,5.8083261]
[1747591129079,21.16135417,172.24,172.14,5.80894693]
[1747591129281,26.0,172.28,172.16,5.80843547]
[1747591129594,26.0,172.3,172.18,5.80782569]
[1747591129900,21.16135417,172.27,172.19,10.60447929]
[1747591130101,26.0,172.3,172.19,10.60447929]
[1747591130308,29.26269855,172.34,172.19,10.60447929]
[1747591130501,29.01249567,172.36,172.19,10.60447929]
[1747591130691,8.80007613,172.3,172.19,10.60447929]
[1747591130892,8.80007613,172.3,172.19,25.12332475]
[1747591131100,8.80007613,172.3,172.19,24.62332475]
[1747591132181,26.0,172.34,172.19,4.47506788]
[1747591132381,26.0,172.33,172.2,26.0]
[1747591132578,137.61229366,172.37,172.2,26.0]
[1747591132778,137.61229366,172.37,172.22,18.64964886]
[1747591132979,137.61229366,172.37,172.25,26.0]
[1747591133405,137.61229366,172.37,172.26,20.31812375]
[1747591133997,158.77364783,172.37,172.22,18.64964886]
[1747591134191,21.16135417,172.34,172.21,1.6639]
[1747591134403,158.77364783,172.37,172.22,19.81057139]
[1747591134708,137.61229366,172.37,172.22,18.64964886]
[1747591134904,137.61229366,172.37,172.22,19.81034539]
[1747591135100,137.61229366,172.37,172.23,5.80618939]
[1747591135406,158.77364783,172.37,172.23,5.80618939]
[1747591135608,21.16135417,172.36,172.23,20.32166288]
[1747591136113,137.61229366,172.37,172.24,26.0]
[1747591136282,21.16135417,172.36,172.24,26.0]
[1747591136485,21.16135417,172.34,172.23,20.32166288]
[1747591136791,137.61229366,172.37,172.24,18.64964886]
[1747591136996,137.61229366,172.37,172.26,26.0]
[1747591137390,137.61229366,172.37,172.27,20.31694432]
[1747591138013,21.16135417,172.36,172.27,20.31694432]
[1747591138392,21.16135417,172.33,172.27,5.80484123]
[1747591138605,26.0,172.36,172.27,5.80484123]
[1747591138804,137.61229366,172.37,172.27,5.80484123]
[1747591139106,137.61229366,172.37,172.27,20.31694432]
[1747591139717,158.77364783,172.37,172.27,20.31694432]
[1747591139882,10.0,172.49,172.28,1.16066819]
[1747591140086,21.16135417,172.41,172.28,26.0]
[1747591140285,9.56608171,172.48,172.28,26.0]
[1747591140508,9.56608171,172.48,172.3,26.0]
[1747591140813,21.16135417,172.45,172.32,26.0]
[1747591141116,21.16135417,172.42,172.28,18.64964886]
[1747591141330,21.16135417,172.39,172.27,14.51210309]
[1747591141620,21.16135417,172.37,172.27,14.51210309]
[1747591141797,21.16135417,172.38,172.27,14.51210309]
[1747591142006,26.0,172.42,172.27,15.67277904]
[1747591142303,10.0,172.4,172.25,20.31930332]
[1747591142496,21.16135417,172.32,172.25,5.80551523]
[1747591142698,26.0,172.31,172.23,5.80603778]
[1747591142902,47.16703242,172.31,172.26,21.16703242]
[1747591143189,26.0,172.31,172.21,7.47057612]
[1747591143423,31.80355072,172.31,172.19,5.80753818]
[1747591143621,32.11414084,172.28,172.22,32.11414084]
[1747591143803,32.11414084,172.27,172.19,5.80753818]
[1747591144002,26.0,172.31,172.22,32.11414084]
[1747591144319,31.80359904,172.31,172.19,5.80753818]
[1747591144516,32.11414084,172.28,172.19,5.80753818]
[1747591144842,18.64964886,172.31,172.19,5.80753818]
[1747591145005,26.0,172.32,172.19,5.80753818]
[1747591146022,26.0,172.33,172.22,5.80643955]
[1747591146220,32.11414084,172.34,172.22,5.80643955]
[1747591146424,44.64964886,172.34,172.22,5.80643955]
[1747591146801,26.0,172.36,172.28,32.11414084]
[1747591147003,32.11414084,172.34,172.22,5.80643955]
[1747591147209,32.11414084,172.29,172.2,5.80711099]
[1747591147505,26.0,172.33,172.25,32.11414084]
[1747591147712,32.11414084,172.33,172.18,20.32730387]
[1747591147905,37.91675938,172.34,172.28,32.11414084]
[1747591148124,37.91675938,172.34,172.19,26.0]
[1747591148125,5.80199449,172.36,172.19,26.0]
[1747591148507,5.80199449,172.36,172.2,18.64964886]
[1747591148707,5.80138582,172.38,172.32,32.11414084]
[1747591148910,32.11414084,172.37,172.26,32.11414084]
[1747591149133,32.11414084,172.37,172.31,32.11414084]
[1747591149299,5.80138582,172.38,172.31,32.11414084]
[1747591149503,32.11414084,172.37,172.24,6.1693]
[1747591149725,37.91569448,172.37,172.27,5.80484123]
[1747591149903,32.11414084,172.36,172.26,32.11414084]
[1747591150108,32.11414084,172.35,172.3,32.11414084]
[1747591150304,32.11414084,172.33,172.24,6.1693]
[1747591150604,5.80155364,172.37,172.31,32.11414084]
[1747591150808,5.80155364,172.37,172.26,32.11414084]
[1747591151011,5.80155364,172.37,172.32,32.11414084]
[1747591151012,18.64964886,172.36,172.32,32.11414084]
[1747591151232,50.7637897,172.36,172.31,32.11414084]
[1747591151412,18.64964886,172.36,172.17,38.28344084]
[1747591151613,5.80214679,172.35,172.29,32.11414084]
[1747591151819,5.80214679,172.35,172.25,5.80533565]
[1747591152029,5.80214679,172.35,172.31,32.11414084]
[1747591152213,18.64964886,172.37,172.32,32.11414084]
[1747591152531,5.80046403,172.4,172.26,33.72114084]
[1747591152829,32.11414084,172.39,172.33,32.11414084]
[1747591153035,5.80046403,172.4,172.26,1.607]
[1747591153332,32.11414084,172.38,172.26,33.72114084]
[1747591153524,46.30162412,172.4,172.26,33.72114084]
[1747591153830,5.80167503,172.37,172.33,32.11414084]
[1747591154029,5.80099575,172.39,172.35,32.11414084]
[1747591154214,37.91513659,172.39,172.34,32.11414084]
[1747591154417,18.64964886,172.42,172.37,32.11414084]
[1747591154612,18.64964886,172.42,172.28,6.1693]
[1747591154817,18.64964886,172.42,172.37,32.11414084]
[1747591155023,50.7637897,172.42,172.37,32.11414084]
[1747591155230,32.11414084,172.4,172.28,6.1693]
[1747591155606,18.64964886,172.42,172.35,32.11414084]
[1747591155830,37.91426844,172.41,172.36,32.11414084]
[1747591156013,5.8001276,172.41,172.37,32.11414084]
[1747591156213,5.8001276,172.41,172.38,32.11414084]
[1747591156520,5.8001276,172.41,172.37,32.11414084]
[1747591157125,56.5635809,172.42,172.29,5.80416739]
[1747591157329,56.5635809,172.42,172.36,32.11414084]
[1747591157533,24.44944006,172.42,172.29,5.80416739]
[1747591157740,24.44944006,172.42,172.37,32.11414084]
[1747591158124,24.44944006,172.42,172.29,5.80416739]
[1747591158319,5.80046403,172.4,172.27,5.80461103]
[1747591158633,24.45011289,172.4,172.35,32.11414084]
[1747591158936,32.11414084,172.38,172.32,32.11414084]
[1747591159244,32.11414084,172.37,172.26,39.52631231]
[1747591159538,50.7637897,172.37,172.31,32.11414084]
[1747591159737,18.64964886,172.37,172.32,32.11414084]
[1747591160239,5.80181016,172.36,172.33,32.11414084]
[1747591160434,5.80080051,172.39,172.34,32.11414084]
[1747591160731,24.45044937,172.39,172.27,5.80484123]
[1747591161238,18.64964886,172.38,172.27,5.80484123]
[1747591161434,32.11414084,172.37,172.31,32.11414084]
[1747591161643,32.11414084,172.37,172.32,32.11414084]
[1747591161942,32.11414084,172.37,172.26,39.52627614]
[1747591162236,5.80147357,172.37,172.33,32.11414084]
[1747591162716,5.80147357,172.37,172.32,32.11414084]
[1747591162915,5.80147357,172.37,172.28,5.80441256]
[1747591163116,5.80147357,172.37,172.33,32.11414084]
[1747591163316,5.80147357,172.37,172.32,32.11414084]
[1747591163821,37.91561441,172.37,172.32,32.11414084]
[1747591164135,5.80147357,172.37,172.32,32.11414084]
[1747591164715,5.80147357,172.37,172.26,33.72114084]
[1747591164716,5.80147357,172.37,172.27,5.80484123]
[1747591164912,5.80147357,172.37,172.32,32.11414084]
[1747591165140,3.14715275,172.36,172.27,5.80484123]
[1747591165341,3.14715275,172.36,172.32,32.11414084]
[1747591165535,3.14715275,172.36,172.27,5.80484123]
[1747591165736,39.80435129,172.35,172.29,21.15470243]
[1747591165953,18.64964886,172.35,172.3,21.15470243]
[1747591166158,3.14715275,172.34,172.31,21.15470243]
[1747591166322,3.14715275,172.34,172.26,7.41214271]
[1747591166526,3.14715275,172.34,172.3,21.15470243]
[1747591166823,8.94978666,172.34,172.3,21.15470243]
[1747591167035,8.94978666,172.34,172.31,21.15470243]
[1747591167257,3.82749287,172.32,172.31,21.15470243]
[1747591167624,3.82749287,172.32,172.26,28.56681403]
[1747591167822,3.82749287,172.32,172.31,21.15470243]
[1747591168052,3.82749287,172.32,172.26,28.56681403]
[1747591168352,3.82749287,172.32,172.31,21.15470243]
[1747591168728,6.97464562,172.32,172.26,28.56681403]
[1747591169056,6.97464562,172.32,172.21,224.59671206]
[1747591169057,21.15470243,172.3,172.21,224.59671206]
[1747591169225,21.15470243,172.3,172.25,21.15470243]
[1747591169428,12.77782512,172.32,172.29,21.15470243]
[1747591169735,3.14715275,172.29,172.28,21.15470243]
[1747591169930,3.14715275,172.29,172.21,224.59671206]
[1747591170329,3.14715275,172.29,172.26,21.15470243]
[1747591170533,3.14715275,172.29,172.21,218.7899]
[1747591170534,24.30185518,172.29,172.21,218.7899]
[1747591170739,5.80450429,172.28,172.24,21.15470243]
[1747591170940,3.14715275,172.27,172.21,224.59665274]
[1747591171143,3.14715275,172.27,172.26,21.15470243]
[1747591171744,3.14715275,172.27,172.26,42.30940486]
[1747591172123,5.80288424,172.33,172.26,42.30940486]
[1747591172328,3.82749287,172.34,172.31,21.15470243]
[1747591172749,3.82749287,172.34,172.32,21.15470243]
[1747591172750,9.63000974,172.34,172.32,21.15470243]
[1747591172938,9.63000974,172.34,172.26,26.95957766]
[1747591173139,9.63000974,172.34,172.31,21.15470243]
[1747591173330,9.63000974,172.34,172.26,26.95957766]
[1747591173652,3.19156736,172.33,172.31,21.15470243]